bitfinex-derivatives/quotes_ETHF0:USTF0_20250426
["timestamp","ask_amount","ask_price","bid_price","bid_amount"]
[1745689497691,13.9792,1807.6,1807.3,7.87403]
[1745689497888,1.6979,1807.5,1807.4,1.83328377]
[1745689498188,9.9079,1807.5,1807.4,1.83328377]
[1745689498483,9.9079,1807.5,1807.3,4.66622]
[1745689498688,8.21,1807.5,1807.4,0.72718444]
[1745689499082,13.518,1807.5,1807.3,3.56]
[1745689499284,13.518,1807.5,1807.4,0.72719973]
[1745689499588,13.518,1807.5,1807.4,1.83339973]
[1745689500290,13.518,1807.5,1807.4,0.72719973]
[1745689500789,13.518,1807.5,1807.3,7.87402]
[1745689501183,13.518,1807.5,1807.4,1.83328109]
[1745689503290,13.518,1807.5,1807.4,9.30408109]
[1745689503291,8.21,1807.5,1807.4,9.30408109]
[1745689503486,3.8378856,1807.5,1807.4,9.30408109]
[1745689503683,4.05519,1807.7,1807.6,1.10608]
[1745689503885,6.18519,1807.7,1807.6,8.60096109]
[1745689504193,2.13,1807.7,1807.6,13.60016888]
[1745689504493,2.13,1807.7,1807.6,14.44276888]
[1745689505090,1e-08,1807.7,1807.6,14.44276888]
[1745689505494,1e-08,1807.7,1807.6,14.84787254]
[1745689505893,1e-08,1807.7,1807.6,14.44276888]
[1745689506085,1e-08,1807.7,1807.6,14.44192753]
[1745689508882,1e-08,1807.7,1807.6,9.44192753]
[1745689509292,5.30800001,1807.7,1807.6,9.44192753]
[1745689511293,5.30800001,1807.7,1807.6,8.71648]
[1745689511501,5.30800001,1807.7,1807.6,9.44134678]
[1745689513701,5.30800001,1807.7,1807.6,5.03874678]
[1745689513899,5.30800001,1807.7,1807.6,1.83094678]
[1745689514899,5.30800001,1807.7,1807.6,1.83151664]
[1745689515993,5.30800001,1807.7,1807.6,1.83179459]
[1745689516500,5.30800001,1807.7,1807.6,0.72571459]
[1745689517505,5.30800001,1807.7,1807.6,1.83179459]
[1745689517798,5.30800001,1807.7,1807.6,5.03959459]
[1745689518303,5.30800001,1807.7,1807.6,6.63779459]
[1745689519705,5.30800001,1807.7,1807.6,7.42889459]
[1745689520102,6.15060001,1807.7,1807.6,6.32281459]
[1745689520403,6.15060001,1807.7,1807.6,7.42889459]
[1745689520702,6.15060001,1807.7,1807.6,3.93351459]
[1745689520901,6.15060001,1807.7,1807.6,5.03959459]
[1745689523905,6.15060001,1807.7,1807.6,6.71479459]
[1745689524802,6.15060001,1807.7,1807.6,5.03959459]
[1745689525502,6.15060001,1807.7,1807.6,6.71479459]
[1745689525704,6.15060001,1807.7,1807.6,6.71499434]
[1745689527599,6.15060001,1807.7,1807.6,3.93384267]
[1745689528502,6.15060001,1807.7,1807.6,0.72604267]
[1745689529209,6.15060001,1807.7,1807.5,1.10614]
[1745689529511,6.15060001,1807.7,1807.6,0.72637461]
[1745689529907,6.15060001,1807.7,1807.6,1.83245461]
[1745689532809,6.15060001,1807.7,1807.6,1.8329027]
[1745689533609,6.15060001,1807.7,1807.6,0.7268227]
[1745689533799,11.15060001,1807.7,1807.6,0.7268227]
[1745689534010,12.25662001,1807.7,1807.6,0.7268227]
[1745689534207,1.10611,1807.6,1807.2,4.31411]
[1745689534406,0.8582,1807.5,1807.2,4.31411]
[1745689534608,8.9882,1807.5,1807.3,1.10626]
[1745689534909,0.7977,1807.4,1807.3,1.10626]
[1745689535106,8.1377,1807.4,1807.3,1.10626]
[1745689536114,13.4457,1807.4,1807.3,1.10626]
[1745689538517,13.4457,1807.4,1807.2,4.31408]
[1745689538708,13.4457,1807.4,1807.2,5.99018]
[1745689541016,13.4457,1807.4,1807.2,6.82838]
[1745689542313,13.4457,1807.4,1807.3,1.10626]
[1745689542508,12.648,1807.4,1807.3,3.63006]
[1745689545726,14.2627,1807.4,1807.3,3.63006]
[1745689547917,14.2627,1807.4,1807.3,6.83786]
[1745689551730,9.88174828,1807.4,1807.3,6.83786]
[1745689552026,9.15492558,1807.4,1807.3,11.83786]
[1745689552323,3.84692558,1807.4,1807.3,6.83786]
[1745689555227,9.15492558,1807.4,1807.3,6.83786]
[1745689559227,9.15492558,1807.4,1807.3,3.63006]
[1745689559431,9.15492558,1807.4,1807.3,6.83786]
[1745689560325,9.15492558,1807.4,1807.3,3.63006]
[1745689560524,9.15492558,1807.4,1807.3,6.83786]
[1745689560731,14.15492558,1807.4,1807.0,3.559]
[1745689560935,3.54602,1807.3,1807.0,3.559]
[1745689561228,1.10642,1807.1,1806.9,3.2078]
[1745689561431,2.4397,1807.0,1806.8,1.10657]
[1745689561634,1.589,1806.9,1806.8,1.10657]
[1745689561834,9.229,1806.9,1806.8,4.31437]
[1745689562131,12.948,1806.9,1806.8,6.05217]
[1745689562923,12.948,1806.9,1806.8,11.05217]
[1745689563728,12.6698,1806.9,1806.8,11.26297]
[1745689564223,7.3618,1806.9,1806.8,16.57097]
[1745689565131,7.3618,1806.9,1806.8,11.26297]
[1745689566327,1.0658,1807.3,1807.2,1.10633]
[1745689566530,8.9258,1807.3,1807.2,4.31413]
[1745689567135,14.2338,1807.3,1807.2,4.31413]
[1745689567445,14.2338,1807.3,1807.2,6.88263]
[1745689571834,14.2338,1807.3,1807.2,6.02623]
[1745689574039,14.2338,1807.3,1807.2,3.2078]
[1745689574537,14.2338,1807.3,1807.2,4.31413]
[1745689574937,14.2338,1807.3,1807.2,3.2078]
[1745689575339,15.8157,1807.3,1807.2,3.2078]
[1745689579342,16.92196,1807.3,1807.2,3.2078]
[1745689579540,16.92196,1807.3,1807.0,3.2078]
[1745689579738,2.589,1807.2,1807.0,3.2078]
[1745689579942,1.7241,1807.1,1807.0,3.2078]
[1745689580241,15.5921,1807.1,1807.0,3.2078]
[1745689586241,16.69849,1807.1,1807.0,3.2078]
[1745689586437,16.69849,1807.1,1806.9,1.10649]
[1745689586641,2.4067,1807.0,1806.9,1.10649]
[1745689586942,10.6167,1807.0,1806.9,1.10649]
[1745689587145,15.9247,1807.0,1806.9,1.10649]
[1745689591145,15.9247,1807.0,1806.8,6.04132]
[1745689591451,1.5787,1806.9,1806.8,6.04132]
[1745689591655,10.0687,1806.9,1806.8,6.04132]
[1745689592253,15.3767,1806.9,1806.8,6.04132]
[1745689592750,13.798,1806.9,1806.8,6.04132]
[1745689593054,1.3,1807.3,1807.2,1.10633]
[1745689593250,13.168,1807.3,1807.2,4.31413]
[1745689594162,13.168,1807.3,1807.2,5.95703]
[1745689598860,13.168,1807.3,1807.2,4.8507]
[1745689599260,13.168,1807.3,1807.2,6.4605]
[1745689599958,13.168,1807.3,1807.2,3.2078]
[1745689600155,14.0216,1807.3,1807.0,3.2078]
[1745689600358,2.5428,1807.2,1807.0,4.31424]
[1745689600558,10.4228,1807.2,1807.0,6.05314]
[1745689600860,10.4228,1807.2,1807.0,4.9467]
[1745689601066,1.718,1807.1,1807.0,4.9467]
[1745689601255,8.938,1807.1,1807.0,4.9467]
[1745689601758,8.938,1807.1,1807.0,6.05315]
[1745689602260,14.246,1807.1,1807.0,6.05315]
[1745689602662,14.246,1807.1,1807.0,4.9467]
[1745689602856,14.246,1807.1,1807.0,3.2078]
[1745689607966,14.246,1807.1,1807.0,4.31425]
[1745689610762,14.246,1807.1,1807.0,1.10645]
[1745689611168,14.246,1807.1,1807.0,2.82465]
[1745689611469,14.246,1807.1,1807.0,3.60915]
[1745689611669,14.246,1807.1,1807.0,4.44615]
[1745689612469,14.246,1807.1,1807.0,1.7182]
[1745689612470,15.35239,1807.1,1807.0,1.7182]
[1745689614071,19.246,1807.1,1806.7,4.31441]
[1745689614271,1.10652,1806.9,1806.7,4.31441]
[1745689614474,2.4474,1806.8,1806.7,4.31441]
[1745689614662,10.8974,1806.8,1806.7,4.31441]
[1745689615074,16.2054,1806.8,1806.7,4.31441]
[1745689616674,17.31197,1806.8,1806.7,3.2078]
[1745689616875,1.10665,1806.7,1806.5,3.2078]
[1745689617069,11.00805,1806.7,1806.5,3.2078]
[1745689617676,1.6464,1806.6,1806.5,4.31455]
[1745689617868,9.5864,1806.6,1806.5,4.31455]
[1745689618066,14.8944,1806.6,1806.5,4.31455]
[1745689619177,9.5864,1806.6,1806.5,4.31455]
[1745689620577,9.5864,1806.6,1806.5,3.2078]
[1745689620771,9.5864,1806.6,1806.3,3.2078]
[1745689620980,2.5311,1806.5,1806.1,1.5748]
[1745689621182,3.68736,1806.4,1806.1,2.68179]
[1745689621479,1.7233,1806.3,1806.2,1.10694]
[1745689621669,8.59,1806.3,1806.2,1.10694]
[1745689621872,8.59,1806.3,1806.2,2.68174]
[1745689622171,10.3133,1806.3,1806.2,2.68174]
[1745689623591,8.59,1806.3,1806.2,2.68174]
[1745689624273,8.59,1806.3,1806.2,16.54974]
[1745689626079,8.59,1806.3,1806.2,11.54974]
[1745689629076,8.59,1806.3,1806.2,14.75754]
[1745689632185,8.59,1806.3,1806.2,19.75754]
[1745689633074,8.59,1806.3,1806.2,14.44954]
[1745689636073,8.59,1806.3,1806.2,9.44954]
[1745689637087,5.822217,1806.3,1806.2,9.44954]
[1745689637586,3.054434,1806.3,1806.2,14.44954]
[1745689637983,0.286651,1806.3,1806.2,14.44954]
[1745689638386,15.4518,1806.7,1806.6,1.10669]
[1745689638684,10.0418,1806.7,1806.6,4.31449]
[1745689639200,12.808,1806.7,1806.6,4.31449]
[1745689639687,12.808,1806.7,1806.6,7.59979]
[1745689640091,7.5,1806.7,1806.6,7.59979]
[1745689648398,6.568,1806.7,1806.6,7.59979]
[1745689648599,3.80101347,1806.7,1806.6,7.59979]
[1745689649099,3.39681347,1806.7,1806.6,7.59979]
[1745689649290,0.62982694,1806.7,1806.6,7.59979]
[1745689649600,1e-08,1806.7,1806.6,7.59979]
[1745689651297,1.5888,1807.0,1806.9,1.10651]
[1745689651599,0.8697,1807.1,1807.0,1.10645]
[1745689651789,10.3919,1807.1,1807.0,1.10645]
[1745689652196,15.6999,1807.1,1807.0,1.10645]
[1745689652789,15.6999,1807.1,1807.0,1.54204636]
[1745689654196,15.6999,1807.1,1807.0,3.17974636]
[1745689654704,15.6999,1807.1,1807.0,2.74415]
[1745689657204,15.6999,1807.1,1807.0,1.10645]
[1745689664996,20.6999,1807.1,1806.9,6.7658]
[1745689665202,1.607,1807.0,1806.7,3.2078]
[1745689665403,0.8236,1806.9,1806.7,4.31442]
[1745689665695,1.607,1806.8,1806.7,3.2078]
[1745689665899,10.1213,1806.8,1806.7,4.31443]
[1745689666204,15.4293,1806.8,1806.7,4.31443]
[1745689670802,13.8223,1806.8,1806.7,5.91053]
[1745689671104,15.4704,1806.8,1806.7,5.91053]
[1745689672202,15.4704,1806.8,1806.7,4.31443]
[1745689673206,20.4704,1806.8,1806.6,3.2078]
[1745689673403,20.4704,1806.8,1806.5,4.66473]
[1745689673404,1.7198,1806.7,1806.5,4.66473]
[1745689673604,0.7847,1806.6,1806.5,4.66473]
[1745689673800,8.7347,1806.6,1806.5,4.66473]
[1745689674001,10.4545,1806.6,1806.5,4.66473]
[1745689674202,15.7625,1806.6,1806.5,4.66473]
[1745689674400,14.9778,1806.6,1806.5,4.66473]
[1745689674598,13.258,1806.6,1806.5,7.94173]
[1745689675110,7.95,1806.6,1806.5,7.94173]
[1745689676208,13.258,1806.6,1806.5,7.94173]
[1745689679207,13.258,1806.6,1806.5,11.14953]
[1745689680307,7.95,1806.6,1806.5,11.14953]
[1745689682206,13.258,1806.6,1806.5,11.14953]
[1745689683210,7.95,1806.6,1806.5,11.14953]
[1745689698824,8.77,1806.6,1806.5,11.14953]
[1745689699224,14.078,1806.6,1806.5,11.14953]
[1745689699729,14.078,1806.6,1806.5,10.34263]
[1745689700324,14.078,1806.6,1806.5,9.52153]
[1745689700621,14.078,1806.6,1806.5,6.7658]
[1745689700826,14.078,1806.6,1806.5,7.87255]
[1745689702222,13.258,1806.6,1806.5,7.87255]
[1745689702823,13.258,1806.6,1806.5,9.50605]
[1745689703122,7.95,1806.6,1806.5,9.50605]
[1745689717141,7.95,1806.6,1806.5,7.87255]
[1745689717333,8.8198,1806.6,1806.5,7.87255]
[1745689718733,10.4142,1806.6,1806.5,7.87255]
[1745689720642,10.4142,1806.6,1806.5,9.51235]
[1745689721758,9.5444,1806.6,1806.5,9.51235]
[1745689740542,9.5444,1806.6,1806.5,6.30455]
[1745689740750,9.5444,1806.6,1806.5,9.51235]
[1745689753960,0.8002,1806.9,1806.5,14.51235]
[1745689754267,2.3,1806.9,1806.8,4.31437]
[1745689754466,2.3,1806.9,1806.8,7.87137]
[1745689755257,2.3,1806.9,1806.8,10.26587]
[1745689758357,3.1316,1806.9,1806.8,10.26587]
[1745689758559,4.7322,1806.9,1806.8,10.26587]
[1745689759470,4.7322,1806.9,1806.8,9.45667]
[1745689759769,4.7322,1806.9,1806.8,7.87137]
[1745689760269,10.0402,1806.9,1806.8,7.87137]
[1745689761067,7.608,1806.9,1806.8,7.87137]
[1745689761274,7.608,1806.9,1806.8,10.29717]
[1745689761275,2.3,1806.9,1806.8,10.29717]
[1745689761467,3.2363,1807.2,1807.1,1.10639]
[1745689761663,10.8763,1807.2,1807.1,4.31419]
[1745689762363,10.8763,1807.2,1807.1,5.90489]
[1745689764274,16.1843,1807.2,1807.1,5.90489]
[1745689765879,16.1843,1807.2,1807.1,3.2078]
[1745689766074,16.1843,1807.2,1807.1,4.31419]
[1745689766883,16.1843,1807.2,1807.1,3.2078]
[1745689767789,22.29064,1807.2,1806.9,3.2078]
[1745689767987,1.5727,1807.1,1806.9,3.2078]
[1745689768173,9.1127,1807.1,1806.9,3.2078]
[1745689768379,9.1127,1807.1,1807.0,1.10645]
[1745689768686,7.54,1807.1,1807.0,1.10645]
[1745689769181,12.848,1807.1,1807.0,1.10645]
[1745689772088,12.848,1807.1,1807.0,2.68145]
[1745689774989,12.848,1807.1,1807.0,1.10645]
[1745689776286,12.848,1807.1,1806.6,3.2078]
[1745689776287,17.848,1807.1,1806.6,3.2078]
[1745689776591,17.848,1807.1,1806.5,1.5206]
[1745689776592,1.10661,1806.8,1806.5,1.5206]
[1745689776787,1.6803,1806.7,1806.5,1.5206]
[1745689776988,8.9003,1806.7,1806.5,1.5206]
[1745689777188,14.2083,1806.7,1806.4,11.67422514]
[1745689777892,15.31494,1806.7,1806.4,11.67422514]
[1745689778085,15.31494,1806.7,1806.4,10.56741514]
[1745689778285,14.2083,1806.7,1806.4,11.67422514]
[1745689778593,14.2083,1806.7,1806.4,4.31461]
[1745689778986,15.31494,1806.7,1806.4,4.31461]
[1745689780391,15.31494,1806.7,1806.6,1.10669]
[1745689780392,14.2083,1806.7,1806.6,1.10669]
[1745689781093,14.2083,1806.7,1806.5,1.10673]
[1745689782196,8.9003,1806.7,1806.5,1.10673]
[1745689784099,14.2083,1806.7,1806.5,1.10673]
[1745689784393,14.2083,1806.7,1806.6,1.10669]
[1745689784996,15.8825,1806.7,1806.6,1.10669]
[1745689786095,15.8825,1806.7,1806.5,1.10671]
[1745689786297,1.6754,1806.6,1806.5,1.10671]
[1745689786493,8.9954,1806.6,1806.5,1.2175247]
[1745689787096,14.3034,1806.6,1806.5,1.2175247]
[1745689790391,14.3034,1806.6,1806.5,0.1108147]
[1745689791800,14.3034,1806.6,1806.5,1.2175647]
[1745689792099,14.3034,1806.6,1806.5,0.1108147]
[1745689795899,15.41009,1806.6,1806.5,0.1108147]
[1745689797003,14.3034,1806.6,1806.5,0.1108147]
[1745689797797,14.3034,1806.6,1806.5,1.2175647]
[1745689797993,14.3034,1806.6,1806.5,2.8618647]
[1745689798399,14.3034,1806.6,1806.5,3.6492647]
[1745689800503,14.3034,1806.6,1806.5,2.5425147]
[1745689802507,14.3034,1806.6,1806.5,0.1108147]
[1745689802508,15.41009,1806.6,1806.5,0.1108147]
[1745689802704,14.3034,1806.6,1806.5,0.1108147]
[1745689803205,8.9954,1806.6,1806.5,0.1108147]
[1745689806404,8.9954,1806.6,1806.5,1.8219147]
[1745689807203,8.9954,1806.6,1806.5,2.9286647]
[1745689807503,8.9954,1806.6,1806.5,1.8219147]
[1745689811511,7.32,1806.6,1806.5,2.9286647]
[1745689814214,12.628,1806.6,1806.5,2.9286647]
[1745689815918,12.628,1806.6,1806.5,1.8219147]
[1745689816115,12.628,1806.6,1806.5,2.9286647]
[1745689816917,12.628,1806.6,1806.5,1.8219147]
[1745689817819,14.3159,1806.6,1806.5,1.8219147]
[1745689818019,14.3159,1806.6,1806.5,2.9286647]
[1745689819511,14.3159,1806.6,1806.5,0.1108147]
[1745689819512,15.42259,1806.6,1806.5,0.1108147]
[1745689819718,16.22059,1806.6,1806.5,0.1108147]
[1745689821614,1.10688,1806.3,1806.1,0.8018]
[1745689821815,1.10711,1806.0,1805.8,1.5206]
[1745689822019,0.817,1805.9,1805.8,1.5206]
[1745689822316,10.76752,1805.9,1805.7,7.35961514]
[1745689822518,0.8407,1805.8,1805.7,7.35961514]
[1745689822723,11.47128,1805.8,1805.7,7.35961514]
[1745689823111,15.6721,1805.8,1805.7,7.35961514]
[1745689824219,15.6721,1805.8,1805.7,1.10724]
[1745689824724,15.6721,1805.8,1805.6,1.10728]
[1745689824931,1.6983,1805.7,1805.6,1.10728]
[1745689825223,9.9583,1805.7,1805.6,1.10728]
[1745689825421,9.9583,1805.7,1805.4,9.2539]
[1745689825623,1.6983,1805.6,1805.4,10.3613]
[1745689825825,8.9783,1805.6,1805.4,10.3613]
[1745689826323,1.6983,1805.5,1805.4,10.3613]
[1745689826527,9.8583,1805.5,1805.4,10.3613]
[1745689826725,9.8583,1805.5,1805.4,4.3152]
[1745689827424,9.8583,1805.5,1805.4,4.9413]
[1745689827620,9.8583,1805.5,1805.4,6.04873]
[1745689828326,9.8583,1805.5,1805.4,3.2078]
[1745689828719,10.6467,1805.5,1805.4,3.2078]
[1745689829321,10.6467,1805.5,1805.4,4.31523]
[1745689829525,8.16,1805.5,1805.4,4.31523]
[1745689831129,8.16,1805.5,1805.4,9.62323]
[1745689835037,8.16,1805.5,1805.4,10.41493]
[1745689841141,8.16,1805.5,1805.4,5.10693]
[1745689847245,8.16,1805.5,1805.4,10.41493]
[1745689848246,8.16,1805.5,1805.4,5.10693]
[1745689849651,8.16,1805.5,1805.4,6.83693]
[1745689850148,8.16,1805.5,1805.4,12.14493]
[1745689854149,8.16,1805.5,1805.4,6.83693]
[1745689855155,8.16,1805.5,1805.4,12.14493]
[1745689861270,8.0491853,1805.5,1805.4,17.14493]
[1745689861458,0.8205,1806.0,1805.6,2.76824]
[1745689861770,8.9405,1806.0,1805.9,4.31492]
[1745689862070,8.9405,1806.0,1805.9,3.2078]
[1745689862267,8.9405,1806.0,1805.8,1.10715]
[1745689862467,2.4964,1805.9,1805.8,1.10715]
[1745689862667,10.5064,1805.9,1805.8,1.10715]
[1745689863269,10.5064,1805.9,1805.7,11.1674]
[1745689863470,1.7022,1805.8,1805.7,11.1674]
[1745689863771,6.4422,1805.8,1805.7,11.1674]
[1745689865071,6.4422,1805.8,1805.7,16.4754]
[1745689866173,6.4422,1805.8,1805.7,11.1674]
[1745689867372,6.4422,1805.8,1805.7,9.492]
[1745689870267,6.4422,1805.8,1805.7,6.7648]
[1745689870773,4.74,1805.8,1805.7,4.31504]
[1745689870973,4.74,1805.8,1805.7,7.87204]
[1745689871175,4.74,1805.8,1805.7,13.18004]
[1745689871677,4.74,1805.8,1805.7,14.83734]
[1745689874883,4.74,1805.8,1805.7,13.7301]
[1745689875277,4.74,1805.8,1805.7,8.4221]
[1745689875478,6.4717,1805.8,1805.7,8.4221]
[1745689875677,6.4717,1805.8,1805.7,9.52934]
[1745689875877,6.4717,1805.8,1805.7,8.4221]
[1745689876076,6.4717,1805.8,1805.7,3.2078]
[1745689876480,11.4717,1805.8,1805.7,3.2078]
[1745689876884,6.4717,1805.8,1805.7,3.2078]
[1745689877082,11.7797,1805.8,1805.7,3.2078]
[1745689877975,11.7797,1805.8,1805.7,4.31504]
[1745689878178,6.4717,1805.8,1805.7,4.31504]
[1745689879183,11.7797,1805.8,1805.7,4.31504]
[1745689880188,6.4717,1805.8,1805.7,4.31504]
[1745689882284,6.4717,1805.8,1805.7,5.12954]
[1745689883287,6.4717,1805.8,1805.7,5.98704]
[1745689887392,6.4717,1805.8,1805.7,4.31504]
[1745689891987,6.4717,1805.8,1805.7,3.2078]
[1745689892186,12.88688,1805.8,1805.7,3.2078]
[1745689893093,6.4717,1805.8,1805.7,3.2078]
[1745689893291,7.57888,1805.8,1805.7,3.2078]
[1745689893494,6.4717,1805.8,1805.7,3.2078]
[1745689894186,11.7797,1805.8,1805.7,3.2078]
[1745689894496,11.7797,1805.8,1805.7,4.31504]
[1745689894696,11.7797,1805.8,1805.7,3.2078]
[1745689894896,11.7797,1805.8,1805.4,5.2836]
[1745689895195,2.4013,1805.7,1805.6,1.10727]
[1745689895387,10.5713,1805.7,1805.4,5.2836]
[1745689895587,8.9714,1805.7,1805.6,1.10731]
[1745689895894,10.07867,1805.7,1805.4,3.557]
[1745689896195,15.38667,1805.7,1805.4,4.66441]
[1745689896497,15.38667,1805.7,1805.5,1.10736]
[1745689897399,14.2794,1805.7,1805.5,1.10736]
[1745689897701,15.38665,1805.7,1805.5,1.10736]
[1745689898406,15.38665,1805.7,1805.4,6.28968]
[1745689899098,10.07865,1805.7,1805.4,6.28968]
[1745689899898,10.07865,1805.7,1805.4,4.66438]
[1745689901802,1.10738,1805.5,1805.3,1.10749]
[1745689902002,0.8566,1805.4,1805.3,1.10749]
[1745689902299,8.5966,1805.4,1805.3,1.10749]
[1745689903098,8.5966,1805.4,1805.3,2.71089]
[1745689906806,7.74,1805.4,1805.3,2.71089]
[1745689907306,7.74,1805.4,1805.3,8.01889]
[1745689908306,7.74,1805.4,1805.3,11.22669]
[1745689916706,7.74,1805.4,1805.3,19.78369]
[1745689918710,7.74,1805.4,1805.3,16.57589]
[1745689918909,7.74,1805.4,1805.3,19.78369]
[1745689921609,4.97049996,1805.4,1805.3,19.78369]
[1745689922010,6.5447,1806.0,1805.7,1.10721]
[1745689922214,1.6229,1805.9,1805.8,1.6728]
[1745689922515,9.7929,1805.9,1805.8,1.6728]
[1745689924819,9.7929,1805.9,1805.7,2.78481]
[1745689925107,1.7051,1805.8,1805.7,1.96611]
[1745689925310,9.3551,1805.8,1805.7,1.96611]
[1745689929817,9.3551,1805.8,1805.7,1.10721]
[1745689931118,9.3551,1805.8,1805.7,1.11591]
[1745689933320,9.3551,1805.8,1805.7,2.70441]
[1745689947331,9.3551,1805.8,1805.7,1.5972]
[1745689947529,9.3551,1805.8,1805.7,0.0087]
[1745689950638,9.3551,1805.8,1805.7,1.11594]
[1745689954235,9.3551,1805.8,1805.7,2.74954]
[1745689956632,7.65,1805.8,1805.7,2.74954]
[1745689956838,7.65,1805.8,1805.7,7.74954]
[1745689957136,2.4782,1806.3,1806.2,1.10694]
[1745689957323,10.0082,1806.3,1806.2,4.31474]
[1745689957829,10.0082,1806.3,1806.2,3.2078]
[1745689958030,10.0082,1806.3,1806.2,3.2165]
[1745689958431,10.0082,1806.3,1806.2,4.8694]
[1745689960035,11.11508,1806.3,1806.2,0.0087]
[1745689960239,21.42308,1806.3,1806.2,0.0087]
[1745689960439,22.21068,1806.3,1806.2,0.0087]
[1745689960935,25.76668,1806.3,1806.2,1e-08]
[1745689963342,20.76668,1806.3,1806.2,1e-08]
[1745689971454,16.1038,1806.3,1806.2,1.10694001]
[1745689971947,17.21068,1806.3,1806.2,1.10694001]
[1745689972148,17.21068,1806.3,1806.2,1.10694]
[1745689972539,16.1038,1806.3,1806.2,1.10694]
[1745689972749,17.21068,1806.3,1806.2,1.10694]
[1745689972951,17.21068,1806.3,1806.1,2.70854]
[1745689973952,16.1038,1806.3,1806.2,1.10694]
[1745689974142,10.7958,1806.3,1806.2,1.10694]
[1745689975046,16.1038,1806.3,1806.2,1.10694]
[1745689976755,17.21068,1806.3,1806.2,1.10694]
[1745689978757,16.1038,1806.3,1805.8,3.2078]
[1745689978944,1.10709,1806.0,1805.8,1.5958]
[1745689979149,4.40232,1805.9,1805.8,1.5958]
[1745689979351,11.8152,1805.9,1805.8,2.70298]
[1745689980157,17.1232,1805.9,1805.8,2.70298]
[1745689980657,13.828,1805.9,1805.8,2.70298]
[1745689982247,8.52,1805.9,1805.8,2.70298]
[1745689987362,8.52,1805.9,1805.8,8.01098]
[1745689988268,8.52,1805.9,1805.8,2.70298]
[1745689989870,8.52,1805.9,1805.8,5.91078]
[1745689994067,8.52,1805.9,1805.8,11.21878]
[1745689997573,8.52,1805.9,1805.8,20.40578]
[1745689997778,8.52,1805.9,1805.8,11.21878]
[1745689998878,8.52,1805.9,1805.8,8.01098]
[1745689999076,8.52,1805.9,1805.8,11.21878]
[1745690008785,8.52,1805.9,1805.8,8.5158]
[1745690008985,9.62712,1805.9,1805.8,8.5158]
[1745690009184,13.828,1805.9,1805.8,3.2078]
[1745690009488,15.4935,1805.9,1805.8,3.2078]
[1745690009783,16.3542,1805.9,1805.8,3.2078]
[1745690010987,16.3542,1805.9,1805.8,4.31498]
[1745690011180,11.0462,1805.9,1805.8,4.31498]
[1745690011586,11.0462,1805.9,1805.8,3.2078]
[1745690013090,11.0462,1805.9,1805.8,4.31498]
[1745690019193,11.0462,1805.9,1805.8,1.10718]
[1745690019387,11.0462,1805.9,1805.8,4.31498]
[1745690020387,16.3542,1805.9,1805.8,4.31498]
[1745690020989,16.3542,1805.9,1805.8,3.2078]
[1745690021294,16.3542,1805.9,1805.8,4.31498]
[1745690022397,17.46132,1805.9,1805.8,3.2078]
[1745690023094,17.46132,1805.9,1805.8,4.31498]
[1745690023794,16.3542,1805.9,1805.8,4.31498]
[1745690024394,17.46132,1805.9,1805.8,4.31498]
[1745690024795,16.3542,1805.9,1805.8,4.31498]
[1745690024984,17.46132,1805.9,1805.8,3.2078]
[1745690025188,1.1072,1805.8,1805.6,3.2078]
[1745690025396,1.10724,1805.7,1805.6,3.2078]
[1745690025592,8.21724,1805.7,1805.6,3.2078]
[1745690025791,9.93414,1805.7,1805.6,3.2078]
[1745690025992,9.93414,1805.7,1805.6,4.31511]
[1745690026298,14.1349,1805.7,1805.6,4.31511]
[1745690027894,14.1349,1805.7,1805.6,1.10731]
[1745690030197,9.93414,1805.7,1805.6,1.10731]
[1745690031200,1.10737,1805.5,1805.4,1.10742]
[1745690031499,7.71,1805.5,1805.4,1.10742]
[1745690031699,7.71,1805.5,1805.4,2.79902]
[1745690031899,9.2967,1805.5,1805.4,2.79902]
[1745690032506,7.71,1805.5,1805.4,2.79902]
[1745690032794,7.71,1805.5,1805.4,3.66852]
[1745690039504,7.71,1805.5,1805.4,3.66853]
[1745690044705,7.71,1805.5,1805.4,2.5611]
[1745690044898,8.5789,1805.5,1805.4,2.5611]
[1745690045806,8.5789,1805.5,1805.4,3.66853]
[1745690048706,7.71,1805.5,1805.4,3.66853]
[1745690052410,7.71,1805.5,1805.4,6.87633]
[1745690054411,7.70130002,1805.5,1805.4,6.87633]
[1745690055214,7.70130002,1805.5,1805.4,12.18433]
[1745690059211,7.70130002,1805.5,1805.4,21.37633]
[1745690059408,7.70130002,1805.5,1805.4,12.18433]
[1745690066716,4.66285,1806.4,1805.6,2.76824]
[1745690067022,1.7387,1806.1,1806.0,4.31486]
[1745690067218,9.1587,1806.1,1806.0,4.31486]
[1745690067419,9.9914,1806.1,1806.0,4.31486]
[1745690068021,9.9914,1806.1,1806.0,3.2078]
[1745690069822,9.9914,1806.1,1805.9,1.10711]
[1745690070017,1.6533,1806.0,1805.9,1.10711]
[1745690070213,9.1933,1806.0,1805.9,1.10711]
[1745690070423,9.1933,1806.0,1805.8,3.2078]
[1745690070616,3.2952,1805.9,1805.8,3.2078]
[1745690070815,10.8752,1805.9,1805.8,3.2078]
[1745690071327,10.8752,1805.9,1805.8,4.31498]
[1745690073625,10.8752,1805.9,1805.8,5.93188]
[1745690074733,10.8752,1805.9,1805.8,4.31498]